bitfinex-derivatives/quotes_BTCF0:USTF0_20250514
["timestamp","ask_amount","ask_price","bid_price","bid_amount"]
[1747245738851,0.01453,103230.0,103220.0,3.04203945]
[1747245739453,0.02015071,103230.0,103220.0,3.04203945]
[1747245739653,1e-08,103230.0,103220.0,3.57513795]
[1747245740154,1e-08,103230.0,103220.0,3.73713795]
[1747245740552,1e-08,103230.0,103220.0,3.55091544]
[1747245741148,1e-08,103230.0,103220.0,3.55291544]
[1747245741755,1e-08,103230.0,103220.0,3.76923544]
[1747245741957,1e-08,103230.0,103220.0,3.77123544]
[1747245742259,1e-08,103230.0,103220.0,3.60923544]
[1747245742843,1e-08,103230.0,103220.0,3.79545795]
[1747245743251,1e-08,103230.0,103220.0,3.70745795]
[1747245743649,0.3608,103270.0,103240.0,0.0484203]
[1747245743954,0.031,103260.0,103250.0,0.9660081]
[1747245744154,0.031,103260.0,103250.0,1.3752269]
[1747245744755,0.031,103260.0,103250.0,1.47207451]
[1747245744956,0.2246567,103260.0,103250.0,1.47207451]
[1747245745256,0.3866567,103260.0,103250.0,1.65829702]
[1747245745463,0.3866567,103260.0,103250.0,1.65929702]
[1747245746663,0.3866567,103260.0,103250.0,1.66129702]
[1747245747462,0.3866567,103260.0,103250.0,2.08835007]
[1747245748562,0.3866567,103260.0,103250.0,1.71769702]
[1747245748764,0.4170567,103260.0,103250.0,1.71769702]
[1747245752461,0.4170567,103260.0,103250.0,1.53147451]
[1747245752665,0.4170567,103260.0,103250.0,0.85597451]
[1747245753551,1.39967921,103260.0,103250.0,0.003]
[1747245753756,1.92590172,103260.0,103250.0,0.003]
[1747245754263,1.73967921,103260.0,103250.0,0.003]
[1747245754561,1.74529992,103260.0,103250.0,0.003]
[1747245754762,1.93152243,103260.0,103250.0,0.003]
[1747245754961,1.74529992,103260.0,103250.0,0.001]
[1747245755384,0.1936942,103240.0,103230.0,0.37411293]
[1747245755751,0.2587942,103240.0,103230.0,0.37411293]
[1747245755964,0.2587942,103240.0,103230.0,0.47096054]
[1747245756151,1.40341671,103240.0,103230.0,0.09878494]
[1747245756356,1.41341671,103240.0,103230.0,0.00193733]
[1747245756564,1.58341671,103240.0,103230.0,0.00193733]
[1747245757356,1.68028471,103240.0,103230.0,0.00193733]
[1747245757557,1.58341671,103240.0,103230.0,0.00193733]
[1747245757765,1.64341671,103240.0,103230.0,0.00193733]
[1747245758571,0.1937318,103220.0,103210.0,0.14885814]
[1747245758757,1.24635994,103220.0,103210.0,0.14885814]
[1747245758954,0.94815994,103220.0,103210.0,0.14885814]
[1747245759159,1.41095994,103220.0,103210.0,0.34260864]
[1747245759763,1.2148118,103220.0,103210.0,0.34260864]
[1747245760963,1.2148118,103220.0,103210.0,0.19471935]
[1747245762167,1.2148118,103220.0,103210.0,0.538927]
[1747245762363,0.4183318,103220.0,103210.0,0.899727]
[1747245762563,0.4183318,103220.0,103210.0,0.932727]
[1747245764471,0.4183318,103220.0,103210.0,0.35500449]
[1747245765965,0.4183318,103220.0,103210.0,0.38530449]
[1747245767963,0.4183318,103220.0,103210.0,0.74610449]
[1747245769473,0.4183318,103220.0,103210.0,0.932327]
[1747245770870,0.42395251,103220.0,103210.0,0.932327]
[1747245772373,0.42395251,103220.0,103210.0,0.74610449]
[1747245773877,0.42395251,103220.0,103210.0,0.932327]
[1747245778578,0.39355251,103220.0,103210.0,0.932327]
[1747245779066,0.19982071,103220.0,103210.0,0.932327]
[1747245779272,0.16762071,103220.0,103210.0,1.349527]
[1747245780170,0.00562071,103220.0,103210.0,1.349527]
[1747245780579,0.00562071,103220.0,103210.0,1.16330449]
[1747245780773,0.00562071,103220.0,103210.0,1.349527]
[1747245781278,0.00562071,103220.0,103210.0,1.351527]
[1747245782080,0.00562071,103220.0,103210.0,1.352527]
[1747245782273,0.00562071,103220.0,103210.0,1.569607]
[1747245783084,0.16762071,103220.0,103210.0,1.569607]
[1747245787977,0.36135251,103220.0,103210.0,1.352527]
[1747245788283,0.42695251,103220.0,103210.0,1.16630449]
[1747245788886,0.42695251,103220.0,103210.0,1.352527]
[1747245789279,0.42695251,103220.0,103210.0,1.351527]
[1747245789586,0.42695251,103220.0,103210.0,0.934327]
[1747245789981,0.42695251,103220.0,103210.0,0.74810449]
[1747245790179,0.42695251,103220.0,103210.0,0.934327]
[1747245790377,0.42695251,103220.0,103210.0,0.89599378]
[1747245790679,0.20042071,103220.0,103210.0,1.29729629]
[1747245791182,0.03842071,103220.0,103210.0,1.29729629]
[1747245791987,0.23215251,103220.0,103210.0,1.29729629]
[1747245792179,0.39415251,103220.0,103210.0,1.29929629]
[1747245792372,0.39415251,103220.0,103210.0,1.30029629]
[1747245792576,0.20042071,103220.0,103210.0,1.08321629]
[1747245792875,0.20042071,103220.0,103210.0,1.30029629]
[1747245793581,0.20042071,103220.0,103210.0,1.152407]
[1747245794287,0.39415251,103220.0,103210.0,1.152407]
[1747245795179,0.42725251,103220.0,103210.0,1.152407]
[1747245795388,0.42725251,103220.0,103210.0,0.96618449]
[1747245795579,0.45915251,103220.0,103210.0,1.16180448]
[1747245796889,0.45915251,103220.0,103210.0,1.06810448]
[1747245797994,0.45915251,103220.0,103210.0,1.10070448]
[1747245799290,0.45915251,103220.0,103210.0,1.06810448]
[1747245801597,0.45915251,103220.0,103210.0,0.65090448]
[1747245802087,0.45915251,103220.0,103210.0,0.83712699]
[1747245802287,0.45915251,103220.0,103210.0,0.90102699]
[1747245802682,0.42725251,103220.0,103210.0,0.90102699]
[1747245802891,0.20042071,103220.0,103210.0,0.90102699]
[1747245803882,0.20042071,103220.0,103210.0,2.40102699]
[1747245804788,0.20042071,103220.0,103210.0,2.76595628]
[1747245807491,0.20042071,103220.0,103210.0,3.03526699]
[1747245807795,0.20042071,103220.0,103210.0,2.84904448]
[1747245807995,0.20042071,103220.0,103210.0,3.03526699]
[1747245808291,0.39415251,103220.0,103210.0,3.03526699]
[1747245808591,0.42505251,103220.0,103210.0,2.81822699]
[1747245808789,0.42505251,103220.0,103210.0,3.03522699]
[1747245808991,0.45525251,103220.0,103210.0,3.03522699]
[1747245814003,0.42505251,103220.0,103210.0,3.03522699]
[1747245814205,0.20042071,103220.0,103210.0,3.03522699]
[1747245814706,0.16762071,103220.0,103210.0,3.03522699]
[1747245816214,0.00562071,103220.0,103210.0,3.03522699]
[1747245816616,0.002,103240.0,103230.0,0.193713]
[1747245816812,0.0346,103240.0,103230.0,1.98805802]
[1747245817119,0.1966,103240.0,103230.0,2.01885802]
[1747245817310,0.1966,103240.0,103230.0,2.11574316]
[1747245818421,0.1966,103240.0,103230.0,2.11774316]
[1747245818621,0.1966,103240.0,103230.0,2.11874316]
[1747245820321,0.1966,103240.0,103230.0,2.12852127]
[1747245820724,0.1966,103240.0,103230.0,1.94229876]
[1747245822717,0.2297,103240.0,103230.0,1.94229876]
[1747245822915,0.2297,103240.0,103230.0,1.72529876]
[1747245823116,0.2297,103240.0,103230.0,1.94229876]
[1747245823717,0.4233942,103240.0,103230.0,1.94229876]
[1747245824024,0.2297,103240.0,103230.0,1.94229876]
[1747245829635,0.2297,103240.0,103230.0,1.75607625]
[1747245829821,0.42901491,103240.0,103230.0,1.52509876]
[1747245830027,0.23532071,103240.0,103230.0,1.52509876]
[1747245831825,0.23532071,103240.0,103230.0,1.71132127]
[1747245832732,0.23532071,103240.0,103230.0,1.71116127]
[1747245833731,0.20222071,103240.0,103230.0,1.71116127]
[1747245833931,0.0313,103250.0,103230.0,1.51744827]
[1747245834236,0.2241567,103260.0,103250.0,0.1936755]
[1747245834431,0.2241567,103260.0,103250.0,0.74069801]
[1747245834636,0.2241567,103260.0,103250.0,0.83439801]
[1747245834935,0.0305,103260.0,103250.0,0.93126438]
[1747245835136,0.1925,103260.0,103250.0,0.93126438]
[1747245835330,0.162,103260.0,103250.0,0.93126438]
[1747245835531,0.3556567,103260.0,103250.0,0.93126438]
[1747245835727,0.48545103,103260.0,103250.0,0.35384187]
[1747245835926,0.4756567,103260.0,103250.0,0.71464187]
[1747245836236,0.3556567,103260.0,103250.0,0.71464187]
[1747245836439,0.3556567,103260.0,103250.0,0.35384187]
[1747245837234,0.4192567,103260.0,103250.0,0.35384187]
[1747245837738,0.4510567,103260.0,103250.0,0.35384187]
[1747245839537,0.46079679,103260.0,103250.0,0.35384187]
[1747245840837,0.4510567,103260.0,103250.0,0.35384187]
[1747245841241,0.4510567,103260.0,103250.0,0.29054187]
[1747245841442,0.4510567,103260.0,103240.0,1.218883]
[1747245841443,0.1936755,103250.0,103240.0,1.1479413]
[1747245841631,0.47399801,103250.0,103240.0,1.1169413]
[1747245841824,0.47399801,103250.0,103240.0,1.21378891]
[1747245842029,0.2877755,103250.0,103240.0,1.21378891]
[1747245842226,0.4497755,103250.0,103240.0,1.46341142]
[1747245842431,0.4497755,103250.0,103240.0,1.49501142]
[1747245842631,0.2561,103250.0,103240.0,1.49501142]
[1747245843125,0.1943,103250.0,103240.0,1.49701142]
[1747245843331,0.1943,103250.0,103240.0,1.49801142]
[1747245844937,0.1936398,103270.0,103260.0,0.3388712]
[1747245845141,0.2594398,103270.0,103260.0,0.93430611]
[1747245845532,0.2594398,103270.0,103260.0,1.0923631]
[1747245846233,0.4541398,103270.0,103260.0,1.1230631]
[1747245846944,0.3883398,103270.0,103260.0,1.1230631]
[1747245847844,0.4216398,103270.0,103260.0,1.1230631]
[1747245848243,0.228,103270.0,103260.0,1.67008561]
[1747245848445,0.388338,103270.0,103260.0,1.29764059]
[1747245848634,0.388338,103270.0,103260.0,1.4838631]
[1747245848635,0.453238,103270.0,103260.0,1.4838631]
[1747245852647,0.1947,103270.0,103260.0,1.67008561]
[1747245853151,0.1947,103270.0,103260.0,2.08728561]
[1747245853340,0.162,103270.0,103260.0,2.08728561]
[1747245854443,0.162,103270.0,103260.0,1.71484059]
[1747245854643,0.1931,103270.0,103260.0,2.08728561]
[1747245855249,0.1931,103270.0,103260.0,2.08928561]
[1747245855546,0.1931,103270.0,103260.0,1.71684059]
[1747245855757,0.386738,103270.0,103260.0,1.9030631]
[1747245856050,0.386738,103270.0,103260.0,0.94782819]
[1747245856051,0.450138,103270.0,103260.0,0.94782819]
[1747245856251,0.450138,103270.0,103260.0,1.1340507]
[1747245858051,0.450138,103270.0,103260.0,0.94782819]
[1747245858258,0.450138,103270.0,103260.0,1.4948507]
[1747245858552,0.450138,103270.0,103260.0,1.0776507]
[1747245859257,0.45575871,103270.0,103260.0,1.0776507]
[1747245863561,0.23162071,103270.0,103260.0,1.0776507]
[1747245863748,0.19872071,103270.0,103260.0,1.0776507]
[1747245864161,0.16762071,103270.0,103260.0,1.26387321]
[1747245864561,0.19942071,103270.0,103260.0,1.68107321]
[1747245865056,0.16762071,103270.0,103260.0,1.68107321]
[1747245866560,0.19932071,103270.0,103260.0,1.68107321]
[1747245867063,0.19932071,103270.0,103260.0,1.30862819]
[1747245867364,0.19932071,103270.0,103260.0,1.68107321]
[1747245867661,0.19932071,103270.0,103260.0,1.4948507]
[1747245868761,0.16762071,103270.0,103260.0,1.68107321]
[1747245869755,0.19982071,103270.0,103260.0,1.68107321]
[1747245870066,0.19982071,103270.0,103260.0,1.4948507]
[1747245871560,0.16762071,103270.0,103260.0,1.4948507]
[1747245871760,0.16762071,103270.0,103260.0,1.68107321]
[1747245872363,0.20082071,103270.0,103260.0,1.68107321]
[1747245873563,0.20082071,103270.0,103260.0,1.8289625]
[1747245873762,0.20082071,103270.0,103260.0,1.64273999]
[1747245877181,0.20082071,103270.0,103260.0,1.4948507]
[1747245877469,0.16762071,103270.0,103260.0,1.68107321]
[1747245879182,0.16762071,103270.0,103260.0,1.30862819]
[1747245879477,0.20082071,103270.0,103260.0,1.55289021]
[1747245880369,0.20082071,103270.0,103260.0,1.7007795]
[1747245882166,0.20082071,103270.0,103260.0,1.45651748]
[1747245882374,0.20082071,103270.0,103260.0,1.7007795]
[1747245884076,0.20082071,103270.0,103260.0,1.55289021]
[1747245884776,0.20082071,103270.0,103260.0,1.30862819]
[1747245884970,0.20082071,103270.0,103260.0,1.55289021]
[1747245887873,0.20082071,103270.0,103260.0,1.7007795]
[1747245887874,0.16762071,103270.0,103260.0,1.7007795]
[1747245890480,0.0339,103280.0,103270.0,0.193638]
[1747245890481,0.002,103280.0,103270.0,0.193638]
[1747245890679,0.002,103280.0,103270.0,0.98496901]
[1747245891174,0.164,103280.0,103270.0,1.08180724]
[1747245892479,0.1967,103280.0,103270.0,1.08280724]
[1747245892876,0.04076,103290.0,103280.0,0.1936192]
[1747245893177,0.1947,103290.0,103280.0,0.90488329]
[1747245893572,0.1947,103290.0,103280.0,1.00171214]
[1747245893876,0.1947,103290.0,103280.0,0.75745012]
[1747245894081,0.1947,103290.0,103280.0,1.00271214]
[1747245894672,0.1947,103290.0,103280.0,0.76045012]
[1747245894878,0.1947,103290.0,103280.0,1.00471214]
[1747245895279,0.1947,103290.0,103280.0,1.00271214]
[1747245895582,0.1947,103290.0,103280.0,1.00671214]
[1747245895972,0.1947,103290.0,103280.0,1.00371214]
[1747245896267,0.1947,103290.0,103280.0,1.00471214]
[1747245896887,0.1947,103290.0,103280.0,0.88258113]
[1747245897568,0.1947,103290.0,103280.0,1.29978113]
[1747245898384,0.1947,103290.0,103280.0,1.42191214]
[1747245899685,0.1947,103290.0,103280.0,1.17765012]
[1747245899884,0.1947,103290.0,103280.0,1.42191214]
[1747245902274,0.1947,103290.0,103280.0,1.29978113]
[1747245903191,0.1947,103290.0,103280.0,1.42191214]
[1747245904485,0.1947,103290.0,103280.0,1.17765012]
[1747245904674,0.1947,103290.0,103280.0,1.29978113]
[1747245904869,0.20032071,103290.0,103280.0,1.29978113]
[1747245907083,0.26492071,103290.0,103280.0,1.29978113]
[1747245907985,0.26492071,103290.0,103280.0,1.17765012]
[1747245908187,0.26492071,103290.0,103280.0,1.29978113]
[1747245911489,0.26492071,103290.0,103280.0,1.17765012]
[1747245911791,0.26492071,103290.0,103280.0,1.29978113]
[1747245912182,0.26492071,103290.0,103280.0,1.17765012]
[1747245912377,0.26492071,103290.0,103280.0,1.29978113]
[1747245912791,0.26492071,103290.0,103280.0,1.17765012]
[1747245913091,0.26492071,103290.0,103280.0,1.29978113]
[1747245915194,0.23332071,103290.0,103280.0,1.29978113]
[1747245915491,0.23332071,103290.0,103280.0,1.17765012]
[1747245915693,0.23332071,103290.0,103280.0,1.29978113]
[1747245916699,0.20032071,103290.0,103280.0,1.42191214]
[1747245916993,0.20032071,103290.0,103280.0,1.64919214]
[1747245917587,0.04893,103300.0,103290.0,0.1936005]
[1747245917797,0.08203,103300.0,103290.0,0.98977151]
[1747245918182,0.24403,103300.0,103290.0,1.08659099]
[1747245918393,0.09805198,103300.0,103290.0,1.08659099]
[1747245918888,0.09805198,103300.0,103290.0,1.08759099]
[1747245919087,0.13115198,103300.0,103290.0,1.08759099]
[1747245919388,0.13115198,103300.0,103290.0,1.08859099]
[1747245919996,0.13115198,103300.0,103290.0,1.08759099]
[1747245920198,0.13115198,103300.0,103290.0,1.09059099]
[1747245920782,0.09805198,103300.0,103290.0,3.00779099]
[1747245920997,0.13105198,103300.0,103290.0,3.00979099]
[1747245921297,0.13105198,103300.0,103290.0,2.88765998]
[1747245921693,0.13105198,103300.0,103290.0,3.00979099]
[1747245922289,0.04803488,103300.0,103290.0,3.131922]
[1747245922488,0.0353526,103320.0,103310.0,0.193563]
[1747245922687,0.0653526,103320.0,103310.0,1.011563]
[1747245922894,0.0353526,103320.0,103310.0,1.36209401]
[1747245923087,0.0353526,103320.0,103310.0,1.45890411]
[1747245923289,0.0339,103320.0,103310.0,1.45890411]
[1747245923689,0.0339,103320.0,103310.0,1.45990411]
[1747245924209,0.0339,103320.0,103310.0,1.46090411]
[1747245924397,0.1959,103320.0,103310.0,1.46090411]
[1747245926886,0.1959,103320.0,103310.0,1.3387731]
[1747245927091,0.1959,103320.0,103310.0,1.46090411]
[1747245927399,0.1959,103320.0,103310.0,1.47556047]
[1747245929897,0.164,103320.0,103310.0,2.01489148]
[1747245930298,0.164,103320.0,103310.0,3.51489148]
[1747245930502,0.164,103320.0,103310.0,3.39276047]
[1747245930903,0.195,103320.0,103310.0,3.39276047]
[1747245931205,0.195,103320.0,103310.0,3.39476047]
[1747245931405,0.195,103320.0,103310.0,3.39376047]
[1747245931605,0.195,103320.0,103310.0,3.39676047]
[1747245934008,0.164,103320.0,103310.0,3.39676047]
[1747245934406,0.16962071,103320.0,103310.0,3.39676047]
[1747245936699,0.20012071,103320.0,103310.0,3.39676047]
[1747245938301,0.16962071,103320.0,103310.0,3.39676047]
[1747245939102,0.16962071,103320.0,103310.0,3.51889148]
[1747245942713,0.16962071,103320.0,103310.0,3.39676047]
[1747245943712,0.16962071,103320.0,103310.0,3.39776047]
[1747245945808,0.16962071,103320.0,103310.0,3.51989148]
[1747245946003,0.12433701,103320.0,103310.0,3.51989148]
[1747245946405,0.0100482,103330.0,103320.0,0.1935443]
[1747245946609,0.0100482,103330.0,103320.0,1.66611733]
[1747245947014,0.0100482,103330.0,103320.0,3.26290869]
[1747245947213,0.0100482,103330.0,103320.0,3.14077768]
[1747245947214,0.1720482,103330.0,103320.0,3.14077768]
[1747245947413,0.1720482,103330.0,103320.0,2.89651566]
[1747245947714,0.1720482,103330.0,103320.0,3.14377768]
[1747245948300,0.1720482,103330.0,103320.0,2.89951566]
[1747245948501,0.1720482,103330.0,103320.0,3.39951566]
[1747245948704,0.1720482,103330.0,103320.0,3.64377768]
[1747245949205,0.1720482,103330.0,103320.0,3.76590869]
[1747245949407,0.1720482,103330.0,103320.0,3.40251566]
[1747245949708,0.17766891,103330.0,103320.0,3.76890869]
[1747245950915,0.17766891,103330.0,103320.0,3.78962111]
[1747245951117,0.17766891,103330.0,103320.0,3.6674901]
[1747245951507,0.17766891,103330.0,103320.0,3.81537939]
[1747245952006,0.17766891,103330.0,103320.0,4.91317939]
[1747245952206,0.17766891,103330.0,103320.0,5.0353104]
[1747245953514,0.17766891,103330.0,103320.0,4.91317939]
[1747245953708,0.17766891,103330.0,103320.0,5.0353104]
[1747245953908,0.17766891,103330.0,103320.0,5.11036512]
[1747245955814,0.08887131,103330.0,103320.0,5.11036512]
[1747245956014,0.032,103340.0,103330.0,0.1935255]
[1747245956223,0.194,103340.0,103330.0,1.00965651]
[1747245956709,0.194,103340.0,103330.0,1.10642914]
[1747245956908,0.194,103340.0,103330.0,1.12714156]
[1747245957110,0.194,103340.0,103330.0,1.00501055]
[1747245957317,0.174,103340.0,103330.0,1.12714156]
[1747245958109,0.2357,103340.0,103330.0,1.24481055]
[1747245958316,0.2357,103340.0,103330.0,1.36694156]
[1747245961012,0.2357,103340.0,103330.0,1.24481055]
[1747245961218,0.2357,103340.0,103330.0,1.36694156]
[1747245963421,0.2357,103340.0,103330.0,1.78414156]
[1747245964122,0.2357,103340.0,103330.0,1.93203085]
[1747245964611,0.4292068,103340.0,103330.0,1.30189984]
[1747245964814,0.93586153,103340.0,103330.0,0.45989984]
[1747245965119,1.18586153,103340.0,103330.0,0.62717434]
[1747245965414,1.06373052,103340.0,103330.0,0.16960171]
[1747245965615,1.06373052,103340.0,103330.0,0.36312721]
[1747245966218,0.94159951,103340.0,103330.0,0.36312721]
[1747245966417,0.94159951,103340.0,103330.0,0.36412721]
[1747245966613,1.06373052,103340.0,103330.0,0.36412721]
[1747245966924,1.06373052,103340.0,103330.0,0.21623792]
[1747245967918,1.06373052,103340.0,103330.0,0.57703792]
[1747245968121,1.06373052,103340.0,103330.0,0.21623792]
[1747245968423,1.42453052,103340.0,103330.0,0.21623792]
[1747245969418,2.00306153,103340.0,103330.0,0.02271242]
[1747245970717,2.00306153,103340.0,103330.0,0.21623792]
[1747245971323,2.00306153,103340.0,103330.0,0.21523792]
[1747245971520,1.88093052,103340.0,103330.0,0.21523792]
[1747245971726,2.00306153,103340.0,103330.0,0.21523792]
[1747245972620,2.00306153,103340.0,103330.0,0.02171242]
[1747245973317,2.00306153,103340.0,103330.0,0.21523792]
[1747245975116,2.00306153,103340.0,103330.0,0.02171242]
[1747245976426,2.24262153,103340.0,103330.0,0.02171242]
[1747245979325,2.24262153,103340.0,103330.0,0.03171242]
[1747245980618,2.24262153,103340.0,103330.0,0.03071242]
[1747245981324,1.99262153,103340.0,103330.0,0.03071242]
[1747245984928,1.61262153,103340.0,103330.0,0.03071242]
[1747245985229,1.99262153,103340.0,103330.0,0.03071242]
[1747245986834,1.99262153,103340.0,103330.0,0.06141242]
[1747245987036,1.99262153,103340.0,103330.0,0.03071242]
[1747245989425,1.51666153,103340.0,103330.0,0.22423792]
[1747245989636,1.65962153,103340.0,103330.0,0.22423792]
[1747245989821,0.71908953,103340.0,103330.0,0.28563792]
[1747245990026,0.79843852,103340.0,103330.0,0.31813792]
[1747245990226,0.55695852,103340.0,103330.0,0.31813792]
[1747245990431,0.79831852,103340.0,103330.0,0.31813792]
[1747245990631,0.40442751,103340.0,103330.0,0.67893792]
[1747245990823,0.16762071,103340.0,103330.0,0.80106893]
[1747245991026,0.36112751,103340.0,103330.0,0.80106893]
[1747245991935,0.36112751,103340.0,103330.0,0.67893792]
[1747245992137,0.36112751,103340.0,103330.0,0.80106893]
[1747245992940,0.36112751,103340.0,103330.0,0.89784156]
[1747245993334,0.36112751,103340.0,103330.0,0.77571055]
[1747245993836,0.48325852,103340.0,103330.0,0.77571055]
[1747245996338,0.51435852,103340.0,103330.0,0.77571055]
[1747245999142,0.48325852,103340.0,103330.0,0.77571055]
[1747245999644,0.51555852,103340.0,103330.0,0.77571055]
[1747246003041,0.63768953,103340.0,103330.0,0.31813792]
[1747246003354,0.96768953,103340.0,103330.0,0.31813792]
[1747246003640,0.84555852,103340.0,103330.0,0.31813792]
[1747246003943,0.84555852,103340.0,103330.0,0.30813792]
[1747246004440,0.96768953,103340.0,103330.0,0.30813792]
[1747246004644,1.39128953,103340.0,103330.0,0.11461242]
[1747246005047,1.39128953,103340.0,103330.0,0.30813792]
[1747246005347,1.72958153,103340.0,103330.0,0.08211242]
[1747246005644,1.48531951,103340.0,103330.0,0.08211242]
[1747246005945,1.72958153,103340.0,103330.0,0.08211242]
[1747246006845,1.72958153,103340.0,103330.0,0.27563792]
[1747246007232,1.72674153,103340.0,103330.0,0.30583792]
[1747246007545,1.72674153,103340.0,103330.0,0.31583792]
[1747246007745,1.72674153,103340.0,103330.0,0.03071242]
[1747246008240,1.72674153,103340.0,103330.0,0.06281242]
[1747246012442,1.48806153,103340.0,103330.0,0.06281242]
[1747246012647,1.96722153,103340.0,103330.0,0.06281242]
[1747246013551,1.87044953,103340.0,103330.0,0.06281242]
[1747246015247,1.87044953,103340.0,103330.0,0.09561242]
[1747246015441,1.39128953,103340.0,103330.0,0.09561242]
[1747246015641,1.86520953,103340.0,103330.0,0.09561242]
[1747246017149,1.39128953,103340.0,103330.0,0.09561242]
[1747246017351,1.63488953,103340.0,103330.0,0.09561242]
[1747246017548,1.53488953,103340.0,103330.0,0.09561242]
[1747246017759,1.90488953,103340.0,103330.0,0.09561242]
[1747246020258,1.90488953,103340.0,103330.0,0.28913792]
[1747246020454,1.17623852,103340.0,103330.0,0.32213792]
[1747246020656,0.57835852,103340.0,103330.0,0.68293792]
[1747246020849,0.36112751,103340.0,103330.0,0.90184156]
[1747246021154,0.59724751,103340.0,103330.0,0.90184156]
[1747246021363,0.71937852,103340.0,103330.0,0.77971055]
[1747246022355,0.75227852,103340.0,103330.0,0.77971055]
[1747246022750,0.76227852,103340.0,103330.0,0.77971055]
[1747246023256,0.75227852,103340.0,103330.0,0.77971055]
[1747246023457,0.63014751,103340.0,103330.0,0.77971055]
[1747246026362,0.8160179,103340.0,103330.0,0.77971055]
[1747246027162,0.63014751,103340.0,103330.0,0.77971055]
[1747246027763,0.59724751,103340.0,103330.0,0.77971055]
[1747246030759,0.5776979,103340.0,103330.0,0.77971055]
[1747246034572,0.6176979,103340.0,103330.0,0.68293792]
[1747246034772,0.6810979,103340.0,103330.0,0.68293792]
[1747246035262,0.6810979,103340.0,103330.0,0.32213792]
[1747246035466,1.0418979,103340.0,103330.0,0.32213792]
[1747246037971,0.85602751,103340.0,103330.0,0.32213792]
[1747246038177,1.0418979,103340.0,103330.0,0.32213792]
[1747246042473,0.85602751,103340.0,103330.0,0.32213792]
[1747246042666,1.0418979,103340.0,103330.0,0.32213792]
[1747246044669,0.49522751,103340.0,103330.0,0.68293792]
[1747246044872,0.62478751,103340.0,103330.0,0.68293792]
[1747246045171,0.59392751,103340.0,103330.0,0.77971055]
[1747246046477,0.16762071,103340.0,103330.0,0.77971055]
[1747246046671,0.16762071,103340.0,103330.0,0.90168597]
[1747246046870,0.36112751,103340.0,103330.0,0.90168597]
[1747246050781,0.36112751,103340.0,103330.0,0.77971055]
[1747246051574,0.39172751,103340.0,103330.0,0.77971055]
[1747246056775,0.39172751,103340.0,103330.0,0.90168597]
[1747246059270,0.19822071,103340.0,103330.0,0.90168597]
[1747246059476,0.36112751,103340.0,103330.0,0.90168597]
[1747246060590,0.39282751,103340.0,103330.0,0.90168597]
[1747246064684,0.39282751,103340.0,103330.0,0.77971055]
[1747246064886,0.51480293,103340.0,103330.0,0.77971055]
[1747246065890,0.39282751,103340.0,103330.0,0.77971055]
[1747246066888,0.39282751,103340.0,103330.0,0.76971055]
[1747246068483,0.39282751,103340.0,103330.0,0.77971055]
[1747246069690,0.45502751,103340.0,103330.0,0.77971055]
[1747246070491,0.93780293,103340.0,103330.0,0.32213792]
[1747246071189,0.96780293,103340.0,103330.0,0.32213792]
[1747246071887,0.60700293,103340.0,103330.0,0.32213792]
[1747246073395,0.60700293,103340.0,103330.0,0.28913792]
[1747246074487,0.60700293,103340.0,103330.0,0.22423792]
[1747246075087,0.60700293,103340.0,103330.0,0.25523792]
[1747246076496,1.36977835,103340.0,103330.0,0.25523792]
[1747246076696,1.24780293,103340.0,103330.0,0.25523792]
[1747246076994,1.36977835,103340.0,103330.0,0.25523792]
[1747246077388,1.24780293,103340.0,103330.0,0.25523792]
[1747246078593,1.04780293,103340.0,103330.0,0.25523792]
[1747246079488,1.04780293,103340.0,103330.0,0.28753792]
[1747246079880,0.92582751,103340.0,103330.0,0.28753792]
[1747246080090,1.04780293,103340.0,103330.0,0.28753792]
[1747246081991,0.68700293,103340.0,103330.0,0.28753792]
[1747246082296,1.04780293,103340.0,103330.0,0.28753792]
[1747246082490,1.27792293,103340.0,103330.0,0.28753792]
[1747246082686,0.92582751,103340.0,103330.0,0.28753792]
[1747246082887,1.27784293,103340.0,103330.0,0.28753792]
[1747246085395,1.39981835,103340.0,103330.0,0.28753792]
[1747246085698,1.39981835,103340.0,103330.0,0.09401242]
[1747246085896,1.65981835,103340.0,103330.0,0.25523792]
[1747246086292,1.41586751,103340.0,103330.0,0.25523792]
[1747246086497,1.65981835,103340.0,103330.0,0.25523792]
[1747246086697,1.65981835,103340.0,103330.0,0.28753792]
[1747246086898,1.28784293,103340.0,103330.0,0.28753792]
[1747246088195,1.46784293,103340.0,103330.0,0.28753792]
[1747246088804,1.22901835,103340.0,103330.0,0.28753792]
[1747246089002,1.58981835,103340.0,103330.0,0.28753792]
[1747246089203,1.46784293,103340.0,103330.0,0.28753792]
[1747246090199,1.58981835,103340.0,103330.0,0.28753792]
[1747246099799,1.23780293,103340.0,103330.0,0.28753792]
[1747246100004,1.23780293,103340.0,103330.0,0.31763792]
[1747246100005,1.81821835,103340.0,103330.0,0.31763792]
[1747246100203,1.57426751,103340.0,103330.0,0.31763792]
[1747246100414,1.81821835,103340.0,103330.0,0.31763792]
[1747246101509,1.84345897,103340.0,103310.0,0.19549673]
[1747246101711,0.79829514,103320.0,103310.0,0.03473583]
[1747246101913,1.53188648,103320.0,103310.0,0.06793583]
[1747246102101,1.78778648,103320.0,103310.0,0.06793583]
[1747246102299,1.78778648,103320.0,103310.0,0.00193583]
[1747246102503,2.15840051,103320.0,103310.0,0.00193583]
[1747246102903,2.15840051,103320.0,103310.0,0.03513583]
[1747246104718,2.15840051,103320.0,103310.0,0.06773583]
[1747246104910,1.69948051,103320.0,103310.0,0.06773583]
[1747246105211,1.67494509,103320.0,103310.0,0.26129883]
[1747246105512,1.40384509,103320.0,103310.0,0.29239883]
[1747246105713,0.74701375,103320.0,103310.0,0.29239883]
[1747246106010,0.74701375,103320.0,103310.0,0.38919019]
[1747246106217,0.71421375,103320.0,103310.0,0.38919019]
[1747246106819,0.59223833,103320.0,103310.0,0.38919019]
[1747246107117,0.71421375,103320.0,103310.0,0.38919019]
[1747246107310,0.74661375,103320.0,103310.0,0.38919019]
[1747246110813,1.10741375,103320.0,103310.0,0.38919019]
[1747246111413,1.17741375,103320.0,103310.0,0.38919019]
[1747246112419,1.29938917,103320.0,103310.0,0.38919019]
[1747246113321,1.29938917,103320.0,103310.0,0.29239883]
[1747246113513,1.36048917,103320.0,103310.0,0.09883583]
[1747246113714,1.36048917,103320.0,103310.0,0.29239883]
[1747246114519,1.36048917,103320.0,103310.0,0.09883583]
[1747246115217,1.36610988,103320.0,103310.0,0.09883583]
[1747246116722,1.38055455,103320.0,103310.0,0.09883583]
[1747246118516,1.38055455,103320.0,103310.0,0.29239883]
[1747246118722,1.25857913,103320.0,103310.0,0.09883583]
[1747246119916,0.89777913,103320.0,103310.0,0.09883583]
[1747246120121,1.38055455,103320.0,103310.0,0.09883583]
[1747246120423,1.38055455,103320.0,103310.0,0.29239883]
[1747246128326,1.66055455,103320.0,103310.0,0.09883583]
[1747246128517,1.66055455,103320.0,103310.0,0.06773583]